[Event "*** Titled Tuesday Blitz"]
[Site "Chess.com"]
[Date "2021.02.09"]
[Round "10"]
[White "Skat2704"]
[Black "GregShahade"]
[Result "1/2-1/2"]
[WhiteElo "2547"]
[BlackElo "2692"]
[TimeControl "180+1"]
[EndTime "11:55:05 PST"]
[Termination "Game drawn by repetition"]

1. d4 {[%clk 0:03:00.9]} 1... Nf6 {[%clk 0:02:59]} 2. c4 {[%clk 0:03:01.1]} 2...
g6 {[%clk 0:02:59.2]} 3. Nc3 {[%clk 0:03:01.7]} 3... d5 {[%clk 0:02:59.5]} 4.
Nf3 {[%clk 0:03:01.5]} 4... Bg7 {[%clk 0:02:58.8]} 5. e3 {[%clk 0:03:01.7]} 5...
O-O {[%clk 0:02:58.2]} 6. cxd5 {[%clk 0:03:02.4]} 6... Nxd5 {[%clk 0:02:58.1]}
7. Bc4 {[%clk 0:03:03.1]} 7... Nb6 {[%clk 0:02:52.5]} 8. Bb3 {[%clk 0:03:03.2]}
8... c5 {[%clk 0:02:51.2]} 9. O-O {[%clk 0:03:01.8]} 9... cxd4 {[%clk
0:02:50.1]} 10. Nxd4 {[%clk 0:02:57.7]} 10... Nc6 {[%clk 0:02:36.7]} 11. Nxc6
{[%clk 0:02:51.5]} 11... bxc6 {[%clk 0:02:37.6]} 12. e4 {[%clk 0:02:51.2]} 12...
Ba6 {[%clk 0:02:31.1]} 13. Re1 {[%clk 0:02:50.3]} 13... Nc4 {[%clk 0:02:20.4]}
14. Qe2 {[%clk 0:02:34.4]} 14... Qd4 {[%clk 0:01:45.6]} 15. Be3 {[%clk 0:02:16]}
15... Nxe3 {[%clk 0:01:37.1]} 16. Qxa6 {[%clk 0:02:15.5]} 16... Ng4 {[%clk
0:01:31.5]} 17. Re2 {[%clk 0:02:00.9]} 17... Qb6 {[%clk 0:01:26.7]} 18. Qa3
{[%clk 0:01:51.5]} 18... e6 {[%clk 0:01:18.3]} 19. Na4 {[%clk 0:01:39.7]} 19...
Qa6 {[%clk 0:01:17]} 20. Rc2 {[%clk 0:01:34.9]} 20... Rfd8 {[%clk 0:01:08.5]}
21. Qb4 {[%clk 0:01:24.5]} 21... Bf8 {[%clk 0:00:54.6]} 22. Qc3 {[%clk
0:01:19.6]} 22... Bg7 {[%clk 0:00:46.6]} 23. Qb4 {[%clk 0:01:18.3]} 23... Ne5
{[%clk 0:00:40.9]} 24. Nc5 {[%clk 0:01:13.8]} 24... Qb5 {[%clk 0:00:40.9]} 25.
Qxb5 {[%clk 0:00:55.6]} 25... cxb5 {[%clk 0:00:41.1]} 26. h3 {[%clk 0:00:54.8]}
26... a5 {[%clk 0:00:41.2]} 27. a4 {[%clk 0:00:53.9]} 27... b4 {[%clk
0:00:38.8]} 28. Rac1 {[%clk 0:00:53.6]} 28... Ra7 {[%clk 0:00:35.4]} 29. f4
{[%clk 0:00:43.6]} 29... Nd3 {[%clk 0:00:31.6]} 30. Nxd3 {[%clk 0:00:41.4]}
30... Rxd3 {[%clk 0:00:32]} 31. Rc8+ {[%clk 0:00:41.1]} 31... Bf8 {[%clk
0:00:32.4]} 32. Bc4 {[%clk 0:00:41.2]} 32... Rd2 {[%clk 0:00:29.9]} 33. b3
{[%clk 0:00:40.8]} 33... Kg7 {[%clk 0:00:29.5]} 34. Bb5 {[%clk 0:00:38.3]} 34...
g5 {[%clk 0:00:18.5]} 35. f5 {[%clk 0:00:36.5]} 35... exf5 {[%clk 0:00:15.9]}
36. exf5 {[%clk 0:00:36.9]} 36... Bd6 {[%clk 0:00:16.4]} 37. Re8 {[%clk
0:00:34.7]} 37... Rc7 {[%clk 0:00:14.2]} 38. Rxc7 {[%clk 0:00:34]} 38... Bxc7
{[%clk 0:00:15.1]} 39. Bc4 {[%clk 0:00:33.4]} 39... Bb6+ {[%clk 0:00:14.2]} 40.
Kh2 {[%clk 0:00:31.5]} 40... Bc7+ {[%clk 0:00:13.4]} 41. Kg1 {[%clk 0:00:30.6]}
41... Bb6+ {[%clk 0:00:14.1]} 42. Kh2 {[%clk 0:00:30.7]} 42... Bc7+ {[%clk
0:00:14.2]} 43. Kg1 {[%clk 0:00:30.9]} 1/2-1/2

[Event "*** Titled Tuesday Blitz"]
[Site "Chess.com"]
[Date "2021.02.09"]
[Round "10"]
[White "esteban062000"]
[Black "AurumO"]
[Result "1-0"]
[WhiteElo "2142"]
[BlackElo "1898"]
[TimeControl "180+1"]
[EndTime "11:55:07 PST"]
[Termination "esteban062000 won by checkmate"]

1. Nf3 {[%clk 0:03:00.9]} 1... d5 {[%clk 0:02:57.8]} 2. c4 {[%clk 0:02:59.9]}
2... e6 {[%clk 0:02:57.3]} 3. b3 {[%clk 0:02:59.9]} 3... Nf6 {[%clk 0:02:57.3]}
4. g3 {[%clk 0:02:59.7]} 4... c5 {[%clk 0:02:57.8]} 5. Bg2 {[%clk 0:02:56.9]}
5... d4 {[%clk 0:02:57.8]} 6. d3 {[%clk 0:02:56]} 6... Nc6 {[%clk 0:02:57.9]} 7.
O-O {[%clk 0:02:56.1]} 7... e5 {[%clk 0:02:58]} 8. e3 {[%clk 0:02:55]} 8... dxe3
{[%clk 0:02:51.6]} 9. fxe3 {[%clk 0:02:47.4]} 9... Be7 {[%clk 0:02:46.3]} 10.
Bb2 {[%clk 0:02:39.6]} 10... Qc7 {[%clk 0:02:40.4]} 11. Nc3 {[%clk 0:02:38.7]}
11... Be6 {[%clk 0:02:34.5]} 12. Ng5 {[%clk 0:02:24.5]} 12... Qd7 {[%clk
0:02:17.6]} 13. Nxe6 {[%clk 0:02:13.9]} 13... Qxe6 {[%clk 0:02:18.5]} 14. Nd5
{[%clk 0:02:10.5]} 14... O-O-O {[%clk 0:01:55.9]} 15. a3 {[%clk 0:01:24.3]}
15... Kb8 {[%clk 0:01:54.8]} 16. Qd2 {[%clk 0:01:21.2]} 16... e4 {[%clk
0:01:28.7]} 17. Nxe7 {[%clk 0:00:50.7]} 17... Qxe7 {[%clk 0:01:17.6]} 18. Bxf6
{[%clk 0:00:38.7]} 18... gxf6 {[%clk 0:01:18.5]} 19. Qf2 {[%clk 0:00:33.5]}
19... Rxd3 {[%clk 0:00:58.5]} 20. Qf4+ {[%clk 0:00:29.6]} 20... Ka8 {[%clk
0:00:55.7]} 21. Bxe4 {[%clk 0:00:28.5]} 21... Rd2 {[%clk 0:00:54.2]} 22. Bxc6
{[%clk 0:00:27.6]} 22... bxc6 {[%clk 0:00:55.1]} 23. Qxf6 {[%clk 0:00:26.1]}
23... Qxe3+ {[%clk 0:00:54.7]} 24. Kh1 {[%clk 0:00:26]} 24... Rhd8 {[%clk
0:00:44.1]} 25. Rae1 {[%clk 0:00:21.7]} 25... Qd4 {[%clk 0:00:20.3]} 26. Qxc6+
{[%clk 0:00:21.3]} 26... Kb8 {[%clk 0:00:19.3]} 27. Qb5+ {[%clk 0:00:21.7]}
27... Ka8 {[%clk 0:00:18.6]} 28. Qc6+ {[%clk 0:00:21.9]} 28... Kb8 {[%clk
0:00:19.1]} 29. Rxf7 {[%clk 0:00:19.3]} 29... Qd7 {[%clk 0:00:03.7]} 30. Rxd7
{[%clk 0:00:19.1]} 30... R2xd7 {[%clk 0:00:04.5]} 31. Qb5+ {[%clk 0:00:19.9]}
31... Ka8 {[%clk 0:00:04.4]} 32. Qxc5 {[%clk 0:00:20.6]} 32... Rd2 {[%clk
0:00:03.7]} 33. Qc6+ {[%clk 0:00:21.1]} 33... Kb8 {[%clk 0:00:03.5]} 34. c5
{[%clk 0:00:22]} 34... Rc8 {[%clk 0:00:01.5]} 35. Qb5+ {[%clk 0:00:22.9]} 35...
Ka8 {[%clk 0:00:01.5]} 36. c6 {[%clk 0:00:23.5]} 36... Rc2 {[%clk 0:00:01.4]}
37. Qb7# {[%clk 0:00:23.6]} 1-0

[Event "*** Titled Tuesday Blitz"]
[Site "Chess.com"]
[Date "2021.02.09"]
[Round "10"]
[White "Atco84"]
[Black "CakeinSpace2002"]
[Result "0-1"]
[WhiteElo "2471"]
[BlackElo "2375"]
[TimeControl "180+1"]
[EndTime "11:55:12 PST"]
[Termination "CakeinSpace2002 won by resignation"]

1. b3 {[%clk 0:03:00.9]} 1... Nf6 {[%clk 0:02:59.2]} 2. Bb2 {[%clk 0:03:00.9]}
2... c5 {[%clk 0:03:00.1]} 3. g3 {[%clk 0:02:57.6]} 3... Nc6 {[%clk 0:03:00.2]}
4. Bg2 {[%clk 0:02:56.1]} 4... d5 {[%clk 0:03:00.5]} 5. Nf3 {[%clk 0:02:54.3]}
5... Bg4 {[%clk 0:03:00]} 6. O-O {[%clk 0:02:53.4]} 6... e6 {[%clk 0:03:00.2]}
7. h3 {[%clk 0:02:48.7]} 7... Bh5 {[%clk 0:03:00.2]} 8. d3 {[%clk 0:02:40.3]}
8... Be7 {[%clk 0:03:00.1]} 9. Nbd2 {[%clk 0:02:39.8]} 9... O-O {[%clk
0:03:00.1]} 10. g4 {[%clk 0:02:39.7]} 10... Bg6 {[%clk 0:02:59.2]} 11. Ne5
{[%clk 0:02:37.9]} 11... Nxe5 {[%clk 0:02:57.9]} 12. Bxe5 {[%clk 0:02:37.2]}
12... Nd7 {[%clk 0:02:57.8]} 13. Bb2 {[%clk 0:02:27.3]} 13... Bf6 {[%clk
0:02:57.8]} 14. Bxf6 {[%clk 0:02:26.3]} 14... Nxf6 {[%clk 0:02:54.1]} 15. c4
{[%clk 0:02:25.4]} 15... h6 {[%clk 0:02:53.3]} 16. Nf3 {[%clk 0:02:23.4]} 16...
Qd6 {[%clk 0:02:51.2]} 17. Qd2 {[%clk 0:02:20.8]} 17... Rad8 {[%clk 0:02:49.5]}
18. Rac1 {[%clk 0:02:17.6]} 18... d4 {[%clk 0:02:49.2]} 19. Rfd1 {[%clk
0:02:07.2]} 19... e5 {[%clk 0:02:49.1]} 20. e4 {[%clk 0:02:07.2]} 20... Nd7
{[%clk 0:02:37.5]} 21. a3 {[%clk 0:02:06.4]} 21... Rfe8 {[%clk 0:02:36.6]} 22.
b4 {[%clk 0:02:06.2]} 22... Nf8 {[%clk 0:02:36.1]} 23. bxc5 {[%clk 0:02:01.4]}
23... Qxc5 {[%clk 0:02:36]} 24. Rb1 {[%clk 0:02:00.4]} 24... b6 {[%clk
0:02:35.6]} 25. a4 {[%clk 0:01:57.8]} 25... f6 {[%clk 0:02:32.9]} 26. Rb5 {[%clk
0:01:55]} 26... Qc7 {[%clk 0:02:33]} 27. a5 {[%clk 0:01:54.8]} 27... bxa5 {[%clk
0:02:28.9]} 28. Ra1 {[%clk 0:01:54.5]} 28... Rb8 {[%clk 0:02:26.3]} 29. Rbxa5
{[%clk 0:01:50.6]} 29... Rb7 {[%clk 0:02:25.7]} 30. Nh4 {[%clk 0:01:49.6]} 30...
Bf7 {[%clk 0:02:20.3]} 31. f4 {[%clk 0:01:45.5]} 31... Ne6 {[%clk 0:02:14.2]}
32. fxe5 {[%clk 0:01:42.7]} 32... fxe5 {[%clk 0:02:15.1]} 33. Nf5 {[%clk
0:01:39.3]} 33... Nf4 {[%clk 0:02:11.1]} 34. Bf1 {[%clk 0:01:37.8]} 34... Bg6
{[%clk 0:02:06.8]} 35. Ra6 {[%clk 0:01:33.3]} 35... Bxf5 {[%clk 0:02:05.2]} 36.
gxf5 {[%clk 0:01:33]} 36... Qe7 {[%clk 0:02:02.2]} 37. f6 {[%clk 0:01:14.2]}
37... gxf6 {[%clk 0:02:00.9]} 38. Kh1 {[%clk 0:01:14.8]} 38... Kh7 {[%clk
0:01:55.1]} 39. Qa2 {[%clk 0:01:14]} 39... Qg7 {[%clk 0:01:42]} 40. Rxa7 {[%clk
0:01:12.1]} 40... Ree7 {[%clk 0:01:42.1]} 41. Rxb7 {[%clk 0:01:04.4]} 41... Rxb7
{[%clk 0:01:43]} 42. Qf2 {[%clk 0:01:04.6]} 42... Rb3 {[%clk 0:01:34]} 43. Rc1
{[%clk 0:01:01.4]} 43... Qg5 {[%clk 0:01:23]} 44. Ra1 {[%clk 0:00:55.7]} 44...
Nxd3 {[%clk 0:01:18.1]} 45. Ra7+ {[%clk 0:00:52.6]} 45... Kg6 {[%clk 0:01:17.9]}
46. Qf3 {[%clk 0:00:31.2]} 46... Nc5 {[%clk 0:00:50.7]} 0-1

[Event "*** Titled Tuesday Blitz"]
[Site "Chess.com"]
[Date "2021.02.09"]
[Round "10"]
[White "olksuna"]
[Black "ShahMatKanal"]
[Result "1-0"]
[WhiteElo "2676"]
[BlackElo "2477"]
[TimeControl "180+1"]
[EndTime "11:55:14 PST"]
[Termination "olksuna won on time"]

1. e4 {[%clk 0:03:00.9]} 1... c5 {[%clk 0:02:59.2]} 2. Nf3 {[%clk 0:03:01.2]}
2... e6 {[%clk 0:02:55.2]} 3. d4 {[%clk 0:03:01.1]} 3... cxd4 {[%clk 0:02:56.1]}
4. Nxd4 {[%clk 0:03:01.9]} 4... a6 {[%clk 0:02:56.7]} 5. c4 {[%clk 0:03:01.8]}
5... d6 {[%clk 0:02:55.8]} 6. Nc3 {[%clk 0:03:01.5]} 6... Be7 {[%clk 0:02:56.1]}
7. Be2 {[%clk 0:02:59.8]} 7... Nf6 {[%clk 0:02:55.9]} 8. O-O {[%clk 0:02:59.2]}
8... O-O {[%clk 0:02:56.5]} 9. f4 {[%clk 0:02:59.3]} 9... Qc7 {[%clk 0:02:52]}
10. Be3 {[%clk 0:02:57.5]} 10... Nbd7 {[%clk 0:02:44.4]} 11. Rc1 {[%clk
0:02:57]} 11... b6 {[%clk 0:02:41.9]} 12. Bf3 {[%clk 0:02:46.6]} 12... Bb7
{[%clk 0:02:41.3]} 13. b4 {[%clk 0:02:45]} 13... Rac8 {[%clk 0:02:29.6]} 14. g4
{[%clk 0:02:39.2]} 14... Qb8 {[%clk 0:02:28.5]} 15. g5 {[%clk 0:02:39]} 15...
Ne8 {[%clk 0:02:12.1]} 16. Qd3 {[%clk 0:02:31.7]} 16... g6 {[%clk 0:02:06.2]}
17. Bg4 {[%clk 0:02:22.5]} 17... Ng7 {[%clk 0:01:58.2]} 18. h4 {[%clk
0:02:11.8]} 18... Rfd8 {[%clk 0:01:52.9]} 19. h5 {[%clk 0:02:08.6]} 19... Ne5
{[%clk 0:01:43]} 20. Qe2 {[%clk 0:01:50]} 20... Nxc4 {[%clk 0:01:07.6]} 21. h6
{[%clk 0:01:48.1]} 21... Nxe3 {[%clk 0:01:03.1]} 22. Qxe3 {[%clk 0:01:46.3]}
22... Ne8 {[%clk 0:00:25]} 23. Nxe6 {[%clk 0:01:45.2]} 23... d5 {[%clk
0:00:12.4]} 24. Nxd8 {[%clk 0:01:30.6]} 24... Rxd8 {[%clk 0:00:13.3]} 25. Nxd5
{[%clk 0:01:30.8]} 25... Bxd5 {[%clk 0:00:13.1]} 26. exd5 {[%clk 0:01:31.7]}
26... Bxb4 {[%clk 0:00:11.5]} 27. Kh1 {[%clk 0:01:19.4]} 27... Qd6 {[%clk
0:00:10.2]} 28. Bf3 {[%clk 0:01:12.7]} 28... Bc5 {[%clk 0:00:09.6]} 29. Qe4
{[%clk 0:01:10.6]} 29... f6 {[%clk 0:00:06.5]} 30. Rfe1 {[%clk 0:01:03]} 30...
fxg5 {[%clk 0:00:05.5]} 31. fxg5 {[%clk 0:01:03]} 31... Nc7 {[%clk 0:00:05.1]}
32. Bg4 {[%clk 0:00:56.9]} 32... Qg3 {[%clk 0:00:04.3]} 33. Be6+ {[%clk
0:00:53.3]} 33... Kh8 {[%clk 0:00:01.4]} 34. Qe5+ {[%clk 0:00:49.1]} 34... Qxe5
{[%clk 0:00:01.5]} 35. Rxe5 {[%clk 0:00:50]} 35... Bd6 {[%clk 0:00:01.6]} 36.
Re4 {[%clk 0:00:45.5]} 36... b5 {[%clk 0:00:01.9]} 37. Rc6 {[%clk 0:00:41.4]}
37... a5 {[%clk 0:00:01.7]} 38. Re3 {[%clk 0:00:37.7]} 38... b4 {[%clk
0:00:02.1]} 39. Rf3 {[%clk 0:00:38]} 39... a4 {[%clk 0:00:02.4]} 40. Rxd6 {[%clk
0:00:38.4]} 40... Re8 {[%clk 0:00:01.1]} 41. Rc6 {[%clk 0:00:36.2]} 41... Nxe6
{[%clk 0:00:01.1]} 42. Rxe6 {[%clk 0:00:35.9]} 1-0

[Event "*** Titled Tuesday Blitz"]
[Site "Chess.com"]
[Date "2021.02.09"]
[Round "10"]
[White "vinniethepooh"]
[Black "Spartakus1975"]
[Result "1-0"]
[WhiteElo "2748"]
[BlackElo "2570"]
[TimeControl "180+1"]
[EndTime "11:55:19 PST"]
[Termination "vinniethepooh won on time"]

1. d4 {[%clk 0:03:00.9]} 1... d5 {[%clk 0:02:59.4]} 2. c4 {[%clk 0:03:01.3]}
2... c6 {[%clk 0:02:58.9]} 3. Nc3 {[%clk 0:03:01.8]} 3... Nf6 {[%clk 0:02:58.3]}
4. cxd5 {[%clk 0:03:02.2]} 4... cxd5 {[%clk 0:02:58.1]} 5. f3 {[%clk 0:03:02.8]}
5... Nc6 {[%clk 0:02:55]} 6. e4 {[%clk 0:03:02.6]} 6... dxe4 {[%clk 0:02:54.9]}
7. d5 {[%clk 0:03:03.5]} 7... Ne5 {[%clk 0:02:48.7]} 8. fxe4 {[%clk 0:03:03.9]}
8... e6 {[%clk 0:02:37.2]} 9. Nf3 {[%clk 0:03:04.2]} 9... Bd6 {[%clk 0:02:32]}
10. Bb5+ {[%clk 0:03:00.2]} 10... Bd7 {[%clk 0:02:20.7]} 11. dxe6 {[%clk
0:02:19.9]} 11... Bxb5 {[%clk 0:02:20.1]} 12. Nxb5 {[%clk 0:02:03.3]} 12... Qa5+
{[%clk 0:01:45.3]} 13. Nc3 {[%clk 0:02:02.7]} 13... O-O-O {[%clk 0:01:37.6]} 14.
Bd2 {[%clk 0:01:46.4]} 14... Nd3+ {[%clk 0:01:18.8]} 15. Kf1 {[%clk 0:01:45.4]}
15... Nxb2 {[%clk 0:01:16.5]} 16. Qb3 {[%clk 0:01:05.9]} 16... Qa6+ {[%clk
0:01:14.1]} 17. Nb5 {[%clk 0:01:05.7]} 17... Na4 {[%clk 0:00:48.9]} 18. Rc1+
{[%clk 0:01:04.7]} 18... Kb8 {[%clk 0:00:48.3]} 19. e7 {[%clk 0:00:55.6]} 19...
Bxe7 {[%clk 0:00:37]} 20. Bf4+ {[%clk 0:00:55]} 20... Bd6 {[%clk 0:00:34.5]} 21.
e5 {[%clk 0:00:47.4]} 21... Nh5 {[%clk 0:00:33.6]} 22. Be3 {[%clk 0:00:29.9]}
22... Be7 {[%clk 0:00:24.3]} 23. Bxa7+ {[%clk 0:00:28.1]} 23... Ka8 {[%clk
0:00:23.1]} 24. Rc4 {[%clk 0:00:25]} 24... Nb6 {[%clk 0:00:17]} 25. Nc7+ {[%clk
0:00:24.1]} 25... Kxa7 {[%clk 0:00:16.4]} 26. Nxa6 {[%clk 0:00:24.8]} 26... Nxc4
{[%clk 0:00:14.9]} 27. Qxc4 {[%clk 0:00:13.1]} 27... Rd1+ {[%clk 0:00:14.7]} 28.
Ne1 {[%clk 0:00:12.2]} 28... Rhd8 {[%clk 0:00:11.6]} 29. Nc7 {[%clk 0:00:12.4]}
29... R8d2 {[%clk 0:00:08.1]} 30. Nb5+ {[%clk 0:00:12.5]} 30... Kb6 {[%clk
0:00:08.4]} 31. Nc3 {[%clk 0:00:12.1]} 31... Rc1 {[%clk 0:00:07.3]} 32. Na4+
{[%clk 0:00:10.5]} 32... Ka7 {[%clk 0:00:05.5]} 33. Qxc1 {[%clk 0:00:11.4]}
33... Rd4 {[%clk 0:00:04.8]} 34. Qe3 {[%clk 0:00:11.4]} 1-0

[Event "*** Titled Tuesday Blitz"]
[Site "Chess.com"]
[Date "2021.02.09"]
[Round "10"]
[White "Maksimus1998"]
[Black "imdvb6307"]
[Result "1/2-1/2"]
[WhiteElo "2491"]
[BlackElo "2378"]
[TimeControl "180+1"]
[EndTime "11:55:20 PST"]
[Termination "Game drawn by repetition"]

1. Nf3 {[%clk 0:03:00.1]} 1... d5 {[%clk 0:02:59.5]} 2. g3 {[%clk 0:03:00]} 2...
Nf6 {[%clk 0:02:59.2]} 3. Bg2 {[%clk 0:03:00.1]} 3... Bg4 {[%clk 0:02:57.2]} 4.
O-O {[%clk 0:03:00.1]} 4... Nbd7 {[%clk 0:02:56.5]} 5. c4 {[%clk 0:02:59.7]}
5... c6 {[%clk 0:02:54.2]} 6. b3 {[%clk 0:02:54.1]} 6... e6 {[%clk 0:02:51.2]}
7. Bb2 {[%clk 0:02:54]} 7... Bd6 {[%clk 0:02:48.1]} 8. d3 {[%clk 0:02:53.2]}
8... Qe7 {[%clk 0:02:41.8]} 9. cxd5 {[%clk 0:02:50.6]} 9... cxd5 {[%clk
0:02:38.8]} 10. e4 {[%clk 0:02:49.2]} 10... Ne5 {[%clk 0:02:21.7]} 11. exd5
{[%clk 0:02:46.1]} 11... Nxd5 {[%clk 0:02:19.2]} 12. Nbd2 {[%clk 0:02:40.9]}
12... O-O {[%clk 0:02:12.8]} 13. Nc4 {[%clk 0:02:35.1]} 13... Nxf3+ {[%clk
0:01:55.9]} 14. Bxf3 {[%clk 0:02:35.2]} 14... Bxf3 {[%clk 0:01:54.8]} 15. Qxf3
{[%clk 0:02:36.1]} 15... b5 {[%clk 0:01:49.6]} 16. Nxd6 {[%clk 0:02:34]} 16...
Qxd6 {[%clk 0:01:49.5]} 17. Qg4 {[%clk 0:02:34.1]} 17... f6 {[%clk 0:01:50]} 18.
Rfe1 {[%clk 0:02:34]} 18... e5 {[%clk 0:01:50.2]} 19. Rac1 {[%clk 0:02:34.3]}
19... Nb4 {[%clk 0:01:18.1]} 20. Ba3 {[%clk 0:02:34.1]} 20... a5 {[%clk
0:01:18.2]} 21. Red1 {[%clk 0:02:26.2]} 21... Rfd8 {[%clk 0:01:16.4]} 22. Qe4
{[%clk 0:02:20.7]} 22... Ra7 {[%clk 0:01:13.3]} 23. h4 {[%clk 0:02:18.9]} 23...
Qd4 {[%clk 0:01:06.9]} 24. Bxb4 {[%clk 0:02:17.2]} 24... Qxe4 {[%clk 0:00:58.9]}
25. dxe4 {[%clk 0:02:15.7]} 25... Rxd1+ {[%clk 0:00:58.6]} 26. Rxd1 {[%clk
0:02:16.6]} 26... axb4 {[%clk 0:00:58.8]} 27. Rd5 {[%clk 0:02:13.3]} 27... Rb7
{[%clk 0:00:52]} 28. g4 {[%clk 0:02:12.8]} 28... h6 {[%clk 0:00:50.2]} 29. h5
{[%clk 0:02:12.6]} 29... Kf7 {[%clk 0:00:50.3]} 30. Kf1 {[%clk 0:02:11.7]} 30...
Ke6 {[%clk 0:00:50.4]} 31. Ke2 {[%clk 0:02:11.7]} 31... Ke7 {[%clk 0:00:50.6]}
32. f3 {[%clk 0:02:11]} 32... Rb6 {[%clk 0:00:50.9]} 33. Ke3 {[%clk 0:02:02.4]}
33... Rb7 {[%clk 0:00:50.1]} 34. f4 {[%clk 0:01:55.4]} 34... Ke6 {[%clk
0:00:46.1]} 35. f5+ {[%clk 0:01:49.2]} 35... Ke7 {[%clk 0:00:45.6]} 36. Ke2
{[%clk 0:01:41.1]} 36... Rb6 {[%clk 0:00:45.1]} 37. Rc5 {[%clk 0:01:41.2]} 37...
Kd7 {[%clk 0:00:44.3]} 38. Rd5+ {[%clk 0:01:29]} 38... Ke7 {[%clk 0:00:38.2]}
39. Kf3 {[%clk 0:01:03]} 39... Rb7 {[%clk 0:00:36.6]} 40. Kg3 {[%clk 0:00:57.2]}
40... Rb6 {[%clk 0:00:36.3]} 41. Kf2 {[%clk 0:00:53.9]} 41... Rb7 {[%clk
0:00:36.2]} 42. Ke3 {[%clk 0:00:54.1]} 42... Rb6 {[%clk 0:00:36.5]} 43. Rd2
{[%clk 0:00:53.8]} 43... Rc6 {[%clk 0:00:27.9]} 44. Rd5 {[%clk 0:00:50.9]} 44...
Rb6 {[%clk 0:00:27.8]} 45. Ke2 {[%clk 0:00:45.6]} 45... Rb7 {[%clk 0:00:27.8]}
46. Ke3 {[%clk 0:00:20.3]} 46... Rb6 {[%clk 0:00:27.7]} 1/2-1/2

[Event "*** Titled Tuesday Blitz"]
[Site "Chess.com"]
[Date "2021.02.09"]
[Round "10"]
[White "guillembaches"]
[Black "anantone"]
[Result "0-1"]
[WhiteElo "2430"]
[BlackElo "2567"]
[TimeControl "180+1"]
[EndTime "11:55:21 PST"]
[Termination "anantone won on time"]

1. e4 {[%clk 0:03:00.9]} 1... c5 {[%clk 0:02:59.4]} 2. Nf3 {[%clk 0:03:01.2]}
2... e6 {[%clk 0:02:59.5]} 3. c4 {[%clk 0:03:00.6]} 3... Nc6 {[%clk 0:02:58.1]}
4. Nc3 {[%clk 0:03:00.6]} 4... d6 {[%clk 0:02:55.9]} 5. Be2 {[%clk 0:02:59.7]}
5... Nd4 {[%clk 0:02:52.9]} 6. Nxd4 {[%clk 0:02:54]} 6... cxd4 {[%clk
0:02:52.3]} 7. Nb5 {[%clk 0:02:54]} 7... Qb6 {[%clk 0:02:40.8]} 8. d3 {[%clk
0:02:46.6]} 8... Bd7 {[%clk 0:02:37.8]} 9. Na3 {[%clk 0:02:44.1]} 9... Ne7
{[%clk 0:02:36]} 10. O-O {[%clk 0:02:44]} 10... Nc6 {[%clk 0:02:35.3]} 11. f4
{[%clk 0:02:41.5]} 11... Be7 {[%clk 0:02:35.5]} 12. f5 {[%clk 0:02:41]} 12...
O-O {[%clk 0:02:33.4]} 13. f6 {[%clk 0:02:23.4]} 13... Bxf6 {[%clk 0:02:32.8]}
14. Rxf6 {[%clk 0:02:23.5]} 14... gxf6 {[%clk 0:02:33.2]} 15. Bh6 {[%clk
0:02:23]} 15... Kh8 {[%clk 0:02:31.5]} 16. Nb5 {[%clk 0:01:59.5]} 16... Ne5
{[%clk 0:02:24.7]} 17. Qf1 {[%clk 0:01:51.9]} 17... f5 {[%clk 0:02:19.3]} 18.
Qf4 {[%clk 0:01:29.3]} 18... Rg8 {[%clk 0:01:42.1]} 19. exf5 {[%clk 0:01:24.9]}
19... exf5 {[%clk 0:01:11.7]} 20. Bg5 {[%clk 0:01:18.5]} 20... Rg6 {[%clk
0:01:02.3]} 21. Bh5 {[%clk 0:01:05.3]} 21... Nxd3 {[%clk 0:00:54.2]} 22. Qh4
{[%clk 0:00:57.3]} 22... d5 {[%clk 0:00:38.3]} 23. Bxg6 {[%clk 0:00:52.9]} 23...
Qxg6 {[%clk 0:00:33.3]} 24. Nxd4 {[%clk 0:00:39.1]} 24... dxc4 {[%clk
0:00:23.5]} 25. Rf1 {[%clk 0:00:29.3]} 25... Re8 {[%clk 0:00:19.1]} 26. h3
{[%clk 0:00:13.9]} 26... Re4 {[%clk 0:00:18.5]} 27. Rf4 {[%clk 0:00:12.3]} 27...
Nxf4 {[%clk 0:00:16.8]} 28. Bxf4 {[%clk 0:00:12.7]} 28... f6 {[%clk 0:00:09.6]}
29. Nf3 {[%clk 0:00:09.9]} 29... Bc6 {[%clk 0:00:07]} 30. Kh2 {[%clk 0:00:08.7]}
30... Re2 {[%clk 0:00:05.9]} 31. Bg3 {[%clk 0:00:06.8]} 31... Bxf3 {[%clk
0:00:04.8]} 32. Qxc4 {[%clk 0:00:07.1]} 32... Rxg2+ {[%clk 0:00:04.9]} 33. Kh1
{[%clk 0:00:07.5]} 33... Rxg3+ {[%clk 0:00:05.3]} 0-1

[Event "*** Titled Tuesday Blitz"]
[Site "Chess.com"]
[Date "2021.02.09"]
[Round "10"]
[White "Rsnr"]
[Black "Sam_ChessMood"]
[Result "0-1"]
[WhiteElo "2779"]
[BlackElo "2869"]
[TimeControl "180+1"]
[EndTime "11:55:24 PST"]
[Termination "Sam_ChessMood won by resignation"]

1. Nf3 {[%clk 0:03:00.9]} 1... d5 {[%clk 0:02:59.2]} 2. e3 {[%clk 0:03:01.3]}
2... Nf6 {[%clk 0:02:58.8]} 3. c4 {[%clk 0:03:01.6]} 3... c6 {[%clk 0:02:58.5]}
4. d4 {[%clk 0:02:43]} 4... Bf5 {[%clk 0:02:53.2]} 5. Nc3 {[%clk 0:02:41.9]}
5... e6 {[%clk 0:02:52.1]} 6. Nh4 {[%clk 0:02:40.4]} 6... Be4 {[%clk 0:02:52.4]}
7. f3 {[%clk 0:02:40.8]} 7... Bg6 {[%clk 0:02:52.6]} 8. Qb3 {[%clk 0:02:41.6]}
8... Qc7 {[%clk 0:02:49.7]} 9. Bd2 {[%clk 0:02:40]} 9... Nbd7 {[%clk 0:02:48.9]}
10. Nxg6 {[%clk 0:02:34]} 10... hxg6 {[%clk 0:02:48.3]} 11. O-O-O {[%clk
0:02:26.3]} 11... a5 {[%clk 0:02:39]} 12. cxd5 {[%clk 0:02:12.6]} 12... Nxd5
{[%clk 0:02:33.5]} 13. Kb1 {[%clk 0:02:12.3]} 13... Nxc3+ {[%clk 0:02:26.7]} 14.
Qxc3 {[%clk 0:02:13.2]} 14... Bb4 {[%clk 0:02:25.2]} 15. Qc2 {[%clk 0:02:13]}
15... Bxd2 {[%clk 0:02:18.7]} 16. Qxd2 {[%clk 0:02:13.9]} 16... Nf6 {[%clk
0:02:11.8]} 17. e4 {[%clk 0:01:36.8]} 17... Rd8 {[%clk 0:01:59]} 18. Bc4 {[%clk
0:01:26.5]} 18... Rxh2 {[%clk 0:01:28.7]} 19. e5 {[%clk 0:00:55.4]} 19... Rxh1
{[%clk 0:01:28.1]} 20. Rxh1 {[%clk 0:00:56.3]} 20... Nd7 {[%clk 0:01:28.5]} 21.
Rh8+ {[%clk 0:00:49.7]} 21... Nf8 {[%clk 0:01:26.9]} 22. Qf4 {[%clk 0:00:42]}
22... Qd7 {[%clk 0:01:05.8]} 23. Kc2 {[%clk 0:00:12.5]} 23... Qxd4 {[%clk
0:00:55.5]} 24. Qxd4 {[%clk 0:00:13.4]} 24... Rxd4 {[%clk 0:00:55.7]} 25. Kc3
{[%clk 0:00:14.3]} 25... Rd1 {[%clk 0:00:50.8]} 26. a4 {[%clk 0:00:11]} 26...
Rg1 {[%clk 0:00:46.9]} 27. Rh2 {[%clk 0:00:11.1]} 27... Ke7 {[%clk 0:00:44.5]}
28. f4 {[%clk 0:00:07.2]} 28... Nd7 {[%clk 0:00:36.8]} 29. b3 {[%clk 0:00:07.8]}
29... g5 {[%clk 0:00:33.5]} 30. fxg5 {[%clk 0:00:02.3]} 30... Nxe5 {[%clk
0:00:33.8]} 31. Be2 {[%clk 0:00:03.2]} 31... c5 {[%clk 0:00:26.9]} 32. Kd2
{[%clk 0:00:03.1]} 32... Ra1 {[%clk 0:00:25.2]} 33. Ke3 {[%clk 0:00:03.1]} 33...
Ra3 {[%clk 0:00:23.2]} 34. Ke4 {[%clk 0:00:03.4]} 34... Rxb3 {[%clk 0:00:20.8]}
35. Bd1 {[%clk 0:00:02.8]} 35... Rb4+ {[%clk 0:00:18.5]} 36. Ke3 {[%clk
0:00:01.8]} 36... Rd4 {[%clk 0:00:18.5]} 37. Bc2 {[%clk 0:00:02]} 37... Ng4+
{[%clk 0:00:18.5]} 0-1